bitfinex-derivatives/quotes_BTCF0:USTF0_20250329
["timestamp","ask_amount","ask_price","bid_price","bid_amount"]
[1743257381072,0.70937944,82725.0,82724.0,0.1824219]
[1743257381777,0.70189357,82725.0,82724.0,0.1824219]
[1743257382776,0.66939357,82725.0,82724.0,0.1824219]
[1743257383172,0.65643016,82725.0,82724.0,0.1824219]
[1743257383376,0.66388614,82725.0,82724.0,0.1824219]
[1743257383881,0.18544614,82725.0,82724.0,0.1824219]
[1743257384983,0.185451,82725.0,82724.0,0.1824219]
[1743257386678,0.17799502,82725.0,82724.0,0.1824219]
[1743257386989,0.17801842,82725.0,82724.0,0.1824219]
[1743257389390,0.20971842,82725.0,82724.0,0.1824219]
[1743257389594,0.07646074,82725.0,82724.0,0.1824219]
[1743257389884,0.01316074,82725.0,82724.0,0.1824219]
[1743257390072,0.00344,82725.0,82724.0,0.1824219]
[1743257391079,0.1243804,82725.0,82724.0,0.1824219]
[1743257391282,0.13395986,82725.0,82724.0,0.1824219]
[1743257391490,0.19775986,82725.0,82724.0,0.1824219]
[1743257392891,0.07581946,82725.0,82724.0,0.1824219]
[1743257393091,0.07579454,82725.0,82724.0,0.1824219]
[1743257393686,0.19673494,82725.0,82724.0,0.1824219]
[1743257393989,0.1861804,82725.0,82724.0,0.1824219]
[1743257394386,0.06524,82725.0,82724.0,0.1824219]
[1743257397082,0.06624,82725.0,82724.0,0.1824219]
[1743257407192,0.07580119,82725.0,82724.0,0.1824219]
[1743257409001,0.07583284,82725.0,82724.0,0.1824219]
[1743257410697,0.0758472,82725.0,82724.0,0.1824219]
[1743257410997,0.1967876,82725.0,82724.0,0.1824219]
[1743257412699,0.19684676,82725.0,82724.0,0.1824219]
[1743257413295,0.30547547,82725.0,82724.0,0.1824219]
[1743257414603,0.18453507,82725.0,82724.0,0.1824219]
[1743257415404,0.17486871,82725.0,82724.0,0.1824219]
[1743257416298,0.06624,82725.0,82724.0,0.1824219]
[1743257416703,0.1871804,82725.0,82724.0,0.1824219]
[1743257417007,0.06624,82725.0,82724.0,0.1824219]
[1743257417198,0.1871804,82725.0,82724.0,0.1824219]
[1743257421714,0.06624,82725.0,82724.0,0.1824219]
[1743257425405,0.1871804,82725.0,82724.0,0.1216219]
[1743257425622,0.20006892,82725.0,82724.0,0.1216219]
[1743257426111,0.32367697,82725.0,82724.0,0.00068]
[1743257426318,0.1209419,82724.0,82723.0,0.03022]
[1743257426506,0.1209419,82724.0,82723.0,0.03086]
[1743257426507,0.14131905,82724.0,82723.0,0.03086]
[1743257426710,0.19907042,82724.0,82723.0,0.03086]
[1743257427306,0.20859986,82724.0,82723.0,0.03086]
[1743257427820,0.32615986,82724.0,82723.0,0.03086]
[1743257428017,0.32615986,82724.0,82723.0,0.03022]
[1743257428219,0.1209448,82722.0,82721.0,0.28915535]
[1743257428419,0.1209448,82722.0,82711.0,0.4920651]
[1743257428420,0.060474,82720.0,82711.0,0.33667489]
[1743257428724,0.1209624,82710.0,82709.0,0.29029746]
[1743257428911,0.26266037,82710.0,82709.0,0.29029746]
[1743257429915,0.27190733,82710.0,82709.0,0.29029746]
[1743257430712,0.27390733,82710.0,82709.0,0.29029746]
[1743257431021,0.63459068,82710.0,82709.0,0.29029746]
[1743257431206,0.63759068,82710.0,82709.0,0.29029746]
[1743257431410,0.637594,82710.0,82709.0,0.29029746]
[1743257431623,0.730694,82710.0,82709.0,0.29029746]
[1743257432411,0.72116389,82710.0,82709.0,0.29029746]
[1743257433221,0.1209741,82702.0,82701.0,0.0302]
[1743257433422,0.48349411,82702.0,82701.0,0.0302]
[1743257434019,0.54509411,82702.0,82701.0,0.0302]
[1743257434418,0.54509411,82702.0,82700.0,0.1]
[1743257434419,0.1209755,82701.0,82700.0,0.1]
[1743257434609,0.0604916,82696.0,82692.0,0.0629]
[1743257434815,0.4817872,82693.0,82692.0,0.0629]
[1743257435010,0.1210004,82684.0,82683.0,0.00048377]
[1743257435321,0.12272041,82684.0,82683.0,0.00048377]
[1743257435825,0.15552041,82684.0,82683.0,0.00048377]
[1743257436209,0.18742041,82684.0,82683.0,0.00048377]
[1743257436623,0.18742041,82684.0,82683.0,0.03118377]
[1743257437220,0.18842041,82684.0,82683.0,0.03118377]
[1743257437525,0.20068429,82684.0,82683.0,0.15218567]
[1743257437712,0.20168429,82684.0,82683.0,0.15218567]
[1743257438317,0.20168429,82684.0,82683.0,0.18318567]
[1743257439733,0.20168429,82684.0,82683.0,0.06218377]
[1743257442235,0.20168429,82684.0,82683.0,0.18318567]
[1743257443424,0.31928429,82684.0,82683.0,0.18318567]
[1743257446027,0.13698429,82684.0,82683.0,0.18318567]
[1743257446226,0.00372001,82684.0,82683.0,0.18318567]
[1743257446925,0.12472041,82684.0,82683.0,0.18318567]
[1743257447325,0.00372001,82684.0,82683.0,0.18318567]
[1743257447934,0.261,82685.0,82683.0,0.18318567]
[1743257448240,0.15648052,82701.0,82696.0,0.1209828]
[1743257448437,0.10903514,82697.0,82696.0,0.4824228]
[1743257449038,0.00084,82697.0,82696.0,0.4824228]
[1743257449335,0.1218214,82697.0,82696.0,0.8432228]
[1743257450239,0.00084,82697.0,82696.0,0.8432228]
[1743257451132,0.15051547,82701.0,82700.0,0.120977]
[1743257451331,0.15131547,82701.0,82700.0,0.121617]
[1743257452032,0.15131547,82701.0,82700.0,0.181817]
[1743257452830,0.04312033,82701.0,82700.0,0.181817]
[1743257453135,0.04232033,82701.0,82700.0,0.181817]
[1743257453635,0.04332033,82701.0,82700.0,0.181817]
[1743257454038,0.16429583,82701.0,82700.0,0.181817]
[1743257454745,0.04332033,82701.0,82700.0,0.181817]
[1743257455328,0.16429583,82701.0,82700.0,0.181817]
[1743257455726,0.04332033,82701.0,82700.0,0.181817]
[1743257456038,0.04232033,82701.0,82700.0,0.181817]
[1743257457021,0.04332033,82701.0,82700.0,0.181817]
[1743257457226,0.16429583,82701.0,82700.0,0.181817]
[1743257457429,0.16509583,82701.0,82700.0,0.181817]
[1743257459826,0.16409583,82701.0,82700.0,0.903417]
[1743257460032,0.16509583,82701.0,82700.0,0.903417]
[1743257460728,0.16609583,82701.0,82700.0,0.903417]
[1743257460933,0.19819583,82701.0,82700.0,0.903417]
[1743257461129,0.19819583,82701.0,82700.0,0.873417]
[1743257461638,0.2077635,82701.0,82700.0,0.873417]
[1743257462937,0.2067635,82701.0,82700.0,0.512617]
[1743257463144,0.2087635,82701.0,82700.0,0.512617]
[1743257464443,0.2077635,82701.0,82700.0,0.512617]
[1743257464644,0.2087635,82701.0,82700.0,0.512617]
[1743257464842,0.2087635,82701.0,82700.0,0.36144]
[1743257465438,0.2077635,82701.0,82700.0,0.39164]
[1743257465638,0.2087635,82701.0,82700.0,0.39164]
[1743257466246,0.2087635,82701.0,82700.0,0.512617]
[1743257466632,0.20692843,82701.0,82700.0,0.512617]
[1743257466837,0.20892843,82701.0,82700.0,0.512617]
[1743257467144,0.21092843,82701.0,82700.0,0.512617]
[1743257467446,0.21292843,82701.0,82700.0,0.512617]
[1743257468741,0.21298763,82701.0,82700.0,0.512617]
[1743257469246,0.20319583,82701.0,82700.0,0.512617]
[1743257469647,0.212988,82701.0,82700.0,0.512617]
[1743257469837,0.20319583,82701.0,82700.0,0.512617]
[1743257470348,0.21292218,82701.0,82700.0,0.512617]
[1743257470547,0.20319583,82701.0,82700.0,0.512617]
[1743257471051,0.0379,82701.0,82700.0,0.512617]
[1743257471349,0.04682987,82701.0,82700.0,0.544117]
[1743257471541,0.04766987,82701.0,82700.0,0.544117]
[1743257472349,0.0371,82701.0,82700.0,0.544117]
[1743257472548,0.0371,82701.0,82700.0,0.55593894]
[1743257473848,0.04662464,82701.0,82700.0,0.55593894]
[1743257474049,0.0371,82701.0,82700.0,0.55593894]
[1743257474244,0.03794,82701.0,82700.0,0.55593894]
[1743257474952,0.0371,82701.0,82700.0,0.55593894]
[1743257475650,0.10839039,82707.0,82704.0,0.0604849]
[1743257475948,0.10919039,82707.0,82706.0,0.4817682]
[1743257476146,0.10919039,82707.0,82706.0,0.4824482]
[1743257476336,0.11872859,82707.0,82706.0,0.5783482]
[1743257476538,0.10839039,82707.0,82706.0,0.5783482]
[1743257476739,0.11792845,82707.0,82706.0,0.5783482]
[1743257477140,0.12272845,82707.0,82706.0,0.5783482]
[1743257477438,0.14459039,82707.0,82706.0,0.5783482]
[1743257477646,0.15011611,82707.0,82706.0,0.5783482]
[1743257477945,0.27508281,82707.0,82706.0,0.5783482]
[1743257478146,0.15411611,82707.0,82706.0,0.5783482]
[1743257478352,0.15211611,82707.0,82706.0,0.5783482]
[1743257478551,0.04772572,82707.0,82706.0,0.5783482]
[1743257478935,0.0382,82707.0,82706.0,0.5783482]
[1743257479848,0.0354,82707.0,82706.0,0.5783482]
[1743257480446,0.0362,82707.0,82706.0,0.5783482]
[1743257480658,0.0354,82707.0,82706.0,0.5783482]
[1743257480852,0.04574676,82707.0,82706.0,0.5783482]
[1743257481147,0.0362,82707.0,82706.0,0.5783482]
[1743257481352,0.04575547,82707.0,82706.0,0.5783482]
[1743257481950,0.0362,82707.0,82706.0,0.5783482]
[1743257482549,0.0691,82707.0,82706.0,0.5783482]
[1743257482856,0.0362,82707.0,82706.0,0.5783482]
[1743257483051,0.0354,82707.0,82706.0,0.5783482]
[1743257485254,0.0362,82707.0,82706.0,0.5783482]
[1743257485751,0.0342,82707.0,82706.0,0.5793482]
[1743257486254,0.0322,82707.0,82706.0,0.5803482]
[1743257486454,0.0322,82707.0,82706.0,0.5793482]
[1743257486646,0.03228,82707.0,82706.0,0.5793482]
[1743257486846,0.03228,82707.0,82706.0,0.5803482]
[1743257487054,0.03228,82707.0,82706.0,0.2195482]
[1743257487254,0.03228,82707.0,82706.0,0.9411482]
[1743257488250,0.03228,82707.0,82706.0,0.2195482]
[1743257488450,0.03228,82707.0,82706.0,0.9411482]
[1743257488646,0.03228,82707.0,82706.0,0.2195482]
[1743257488850,0.03228,82707.0,82706.0,0.9411482]
[1743257489256,0.03228,82707.0,82706.0,0.2195482]
[1743257489458,0.03228,82707.0,82706.0,0.9411482]
[1743257489848,0.03228,82707.0,82706.0,0.9391482]
[1743257490048,0.03228,82707.0,82706.0,0.9401482]
[1743257490253,0.03228,82707.0,82706.0,0.2185482]
[1743257490453,0.03228,82707.0,82706.0,0.9401482]
[1743257491454,0.10839039,82713.0,82712.0,0.1209594]
[1743257491655,0.10923039,82713.0,82712.0,0.1216394]
[1743257492159,0.10839039,82713.0,82712.0,0.1216394]
[1743257492360,0.14426019,82719.0,82706.0,0.7989765]
[1743257492661,0.14426019,82719.0,82714.0,0.4817565]
[1743257492855,0.14426019,82719.0,82714.0,0.4824765]
[1743257493448,0.14426019,82719.0,82714.0,0.49142697]
[1743257493756,0.14426019,82719.0,82718.0,0.1209507]
[1743257493957,0.14426019,82719.0,82718.0,0.4823907]
[1743257495456,0.14426019,82719.0,82718.0,0.5774907]
[1743257495660,0.18116711,82727.0,82718.0,0.5774907]
[1743257495661,0.0001814,82727.0,82723.0,0.1209433]
[1743257495865,0.0001814,82727.0,82723.0,0.4823833]
[1743257496159,0.1209415,82725.0,82723.0,0.4823833]
[1743257496365,0.1815888,82727.0,82723.0,0.5455833]
[1743257496665,0.0606505,82727.0,82723.0,0.5455833]
[1743257496865,0.0305,82726.0,82723.0,0.5455833]
[1743257497055,0.0024,82724.0,82723.0,0.5455833]
[1743257497256,0.0034,82724.0,82723.0,0.5455833]
[1743257504058,0.0306,82733.0,82729.0,0.060467]
[1743257504361,0.03164001,82733.0,82732.0,0.4817302]
[1743257504560,0.03164001,82733.0,82732.0,0.4824902]
[1743257504754,0.0306,82733.0,82732.0,0.4824902]
[1743257505472,0.0001814,82741.0,82739.0,0.12092]
[1743257505660,0.00144001,82740.0,82739.0,0.4824]
[1743257506067,0.0001814,82741.0,82740.0,0.1209185]
[1743257506365,0.0008614,82741.0,82740.0,0.1215585]
[1743257506568,0.0008614,82741.0,82740.0,0.1522585]
[1743257506765,0.0318614,82741.0,82740.0,0.1833585]
[1743257507362,0.0620614,82741.0,82740.0,0.1833585]
[1743257507671,0.0730614,82741.0,82740.0,0.1833585]
[1743257508068,0.0730614,82741.0,82740.0,0.1215585]
[1743257508569,0.08264076,82741.0,82740.0,0.1215585]
[1743257508969,0.20355713,82741.0,82740.0,0.1215585]
[1743257509171,0.20355713,82741.0,82740.0,0.00064]
[1743257509775,0.20355713,82741.0,82740.0,0.1215585]
[1743257511171,0.20368406,82741.0,82740.0,0.1215585]
[1743257512074,0.20368406,82741.0,82740.0,0.4823585]
[1743257513070,0.20356579,82741.0,82740.0,0.4823585]
[1743257513368,0.19756579,82741.0,82740.0,0.4823585]
[1743257513569,0.19556579,82741.0,82740.0,0.4823585]
[1743257513777,0.19856579,82741.0,82740.0,0.4823585]
[1743257515169,0.19854709,82741.0,82740.0,0.4823585]
[1743257517078,0.19849505,82741.0,82740.0,0.4823585]
[1743257517276,0.1889784,82741.0,82740.0,0.4823585]
[1743257519185,0.1889784,82741.0,82740.0,0.1215585]
[1743257519476,0.1889784,82741.0,82740.0,0.4823585]
[1743257522176,0.198527,82741.0,82740.0,0.4823585]
[1743257522583,0.198527,82741.0,82740.0,0.5137585]
[1743257523274,0.198527,82741.0,82740.0,0.4823585]
[1743257524079,0.198527,82741.0,82740.0,0.1215585]
[1743257524481,0.198527,82741.0,82740.0,0.4823585]
[1743257525068,0.09032482,82741.0,82740.0,0.4823585]
[1743257525281,0.198527,82741.0,82740.0,0.5452585]
[1743257528183,0.19854866,82741.0,82740.0,0.5452585]
[1743257528383,0.21127097,82741.0,82740.0,0.5452585]
[1743257528579,0.21127101,82741.0,82740.0,0.5452585]
[1743257528883,0.19854869,82741.0,82740.0,0.5452585]
[1743257529180,0.07763169,82741.0,82740.0,0.5452585]
[1743257529576,0.11005169,82741.0,82740.0,0.5452585]
[1743257529878,0.01575169,82741.0,82740.0,0.5452585]
[1743257530085,0.01575169,82741.0,82740.0,0.5772585]
[1743257530284,0.01643169,82741.0,82740.0,0.5772585]
[1743257531072,0.19354334,82741.0,82740.0,0.5772585]
[1743257531474,0.16044334,82741.0,82740.0,0.5772585]
[1743257531674,0.16112334,82741.0,82740.0,0.5772585]
[1743257531973,0.16112334,82741.0,82740.0,0.58941353]
[1743257532179,0.16044334,82741.0,82740.0,0.58941353]
[1743257532783,0.15087305,82741.0,82740.0,0.58941353]
[1743257533086,0.160612,82741.0,82740.0,0.58941353]
[1743257533274,0.01592035,82741.0,82740.0,0.58941353]
[1743257533475,0.0158023,82741.0,82740.0,0.58941353]
[1743257536792,0.77805989,82761.0,82760.0,0.1208893]
[1743257537081,0.77805989,82761.0,82760.0,0.4816893]
[1743257537082,0.79148491,82761.0,82760.0,0.4816893]
[1743257537290,0.77873989,82761.0,82760.0,0.4823293]
[1743257537488,0.25212336,82769.0,82767.0,0.120879]
[1743257537682,0.25212336,82769.0,82767.0,0.482519]
[1743257537683,0.42600407,82768.0,82767.0,0.482519]
[1743257537879,0.42555863,82768.0,82767.0,0.482519]
[1743257538286,0.42555863,82768.0,82767.0,0.548019]
[1743257538287,0.43830295,82768.0,82767.0,0.548019]
[1743257538488,0.42555863,82768.0,82767.0,0.548019]
[1743257539184,0.00076,82768.0,82767.0,0.548019]
[1743257539386,0.0004,82772.0,82771.0,0.1208732]
[1743257539583,0.00116,82772.0,82771.0,0.4825132]
[1743257539781,0.0004,82772.0,82771.0,0.4825132]
[1743257539982,0.00116,82772.0,82771.0,0.4825132]
[1743257540183,0.00116,82772.0,82771.0,0.5486132]
[1743257540385,0.0004,82772.0,82771.0,0.5486132]
[1743257540787,0.0912293,82781.0,82771.0,0.5486132]
[1743257540788,0.17795036,82783.0,82780.0,0.1208571]
[1743257540997,0.120859,82781.0,82780.0,0.1208571]
[1743257541291,0.00072,82781.0,82780.0,0.6025157]
[1743257541491,0.00072,82781.0,82780.0,0.6033157]
[1743257542396,0.185979,82781.0,82780.0,0.6033157]
[1743257543090,0.120859,82781.0,82780.0,0.5428857]
[1743257543281,0.121859,82781.0,82780.0,0.5428857]
[1743257544285,0.122859,82781.0,82780.0,0.6033082]
[1743257544485,0.123499,82781.0,82780.0,0.6033082]
[1743257545300,0.1174,82789.0,82780.0,0.6033082]
[1743257545488,0.120859,82781.0,82780.0,0.4824561]
[1743257545703,0.121499,82781.0,82780.0,0.4824561]
[1743257545885,0.120859,82781.0,82780.0,0.4824561]
[1743257546291,0.12241901,82781.0,82780.0,0.4824561]
[1743257547294,0.18521901,82781.0,82780.0,0.4824561]
[1743257547499,0.21811901,82781.0,82780.0,0.4824561]
[1743257547983,0.22011901,82781.0,82780.0,0.4824561]
[1743257548191,0.22211901,82781.0,82780.0,0.4824561]
[1743257550007,0.18921901,82781.0,82780.0,0.4824561]
[1743257553695,0.18921901,82781.0,82780.0,0.5143561]
[1743257554003,0.06836001,82781.0,82780.0,0.5143561]
[1743257554601,0.0668,82781.0,82780.0,0.5143561]
[1743257554797,0.06828,82781.0,82780.0,0.5143561]
[1743257554997,0.0668,82781.0,82780.0,0.5143561]
[1743257555901,0.00548,82781.0,82780.0,0.5143561]
[1743257556103,0.004,82781.0,82780.0,0.5143561]
[1743257557309,0.0368,82781.0,82780.0,0.5143561]
[1743257557503,0.03832,82781.0,82780.0,0.5446561]
[1743257558311,0.0368,82781.0,82780.0,0.5446561]
[1743257558609,0.1576586,82781.0,82780.0,0.5446561]
[1743257558906,0.1591386,82781.0,82780.0,0.5446561]
[1743257560905,0.1591386,82781.0,82780.0,0.9054561]
[1743257564111,0.1591386,82781.0,82780.0,0.9371561]
[1743257564612,0.17180131,82781.0,82780.0,0.9371561]
[1743257572214,0.21646241,82795.0,82788.0,0.0604237]
[1743257572411,0.21646241,82795.0,82794.0,0.4816396]
[1743257572616,0.1,82800.0,82796.0,0.1208367]
[1743257572919,0.1,82800.0,82796.0,0.1227567]
[1743257573417,0.1,82800.0,82796.0,0.1870567]
[1743257573715,0.1,82800.0,82799.0,0.1208323]
[1743257573909,0.1,82800.0,82799.0,0.1227523]
[1743257574312,0.181215,82816.0,82815.0,0.120809]
[1743257574512,0.19084108,82816.0,82815.0,0.481609]
[1743257574708,0.19969938,82816.0,82815.0,0.483609]
[1743257574910,0.19969938,82816.0,82815.0,0.578309]
[1743257575608,0.23029938,82816.0,82815.0,0.578309]
[1743257575811,0.23774603,82816.0,82815.0,0.578309]
[1743257576122,0.45965973,82816.0,82790.0,0.4212222]
[1743257576310,0.1208425,82793.0,82792.0,0.1208421]
[1743257576616,0.13046858,82793.0,82792.0,0.1221621]
[1743257576817,0.13923523,82793.0,82792.0,0.1525621]
[1743257577017,0.20013523,82793.0,82792.0,0.1843621]
[1743257578514,0.20013523,82793.0,82792.0,0.5451621]
[1743257578915,0.20013523,82793.0,82792.0,0.1843621]
[1743257579114,0.20013523,82793.0,82792.0,0.5451621]
[1743257579314,0.20113523,82793.0,82792.0,0.5451621]
[1743257579511,0.17083523,82793.0,82792.0,0.5451621]
[1743257579712,0.16951523,82793.0,82792.0,0.5451621]
[1743257579911,0.17083523,82793.0,82792.0,0.5451621]
[1743257580215,0.17283523,82793.0,82792.0,0.5451621]
[1743257580717,0.18821054,82793.0,82792.0,0.5451621]
[1743257581311,0.18076389,82793.0,82792.0,0.5451621]
[1743257581511,0.15017068,82793.0,82792.0,0.5451621]
[1743257581713,0.14885068,82793.0,82792.0,0.5451621]
[1743257581921,0.15021068,82793.0,82792.0,0.5451621]
[1743257582221,0.15021068,82793.0,82792.0,0.42432]
[1743257582519,0.14057781,82793.0,82792.0,0.42432]
[1743257582714,0.15304667,82793.0,82792.0,0.42432]
[1743257583021,0.21704667,82793.0,82792.0,0.42432]
[1743257583223,0.20457781,82793.0,82792.0,0.42432]
[1743257583411,0.21704735,82793.0,82792.0,0.42432]
[1743257583607,0.21704735,82793.0,82792.0,0.5451625]
[1743257584119,0.21704735,82793.0,82792.0,0.1843625]
[1743257585422,0.20457781,82793.0,82792.0,0.1843625]
[1743257586416,0.17187781,82793.0,82792.0,0.1843625]
[1743257587916,0.14057781,82793.0,82792.0,0.1843625]
[1743257589421,0.01973531,82793.0,82792.0,0.1843625]
[1743257589717,0.01837531,82793.0,82792.0,0.1843625]
[1743257590322,0.01969531,82793.0,82792.0,0.1843625]
[1743257591117,0.01869531,82793.0,82792.0,0.1843625]
[1743257591326,0.01669531,82793.0,82792.0,0.1843625]
[1743257591526,0.00132,82793.0,82792.0,0.1843625]
[1743257591716,0.12101119,82801.0,82800.0,0.1208309]
[1743257591920,0.0015808,82801.0,82800.0,0.4829509]
[1743257592221,0.12101019,82801.0,82800.0,0.4829509]
[1743257592423,0.13670518,82801.0,82800.0,0.5478509]
[1743257594219,0.13770518,82801.0,82800.0,0.5478509]
[1743257594615,0.13970518,82801.0,82800.0,0.5478509]
[1743257595231,0.13970518,82801.0,82800.0,0.9086509]
[1743257595527,0.13906518,82801.0,82800.0,0.9086509]
[1743257595725,0.14990006,82801.0,82800.0,0.9086509]
[1743257595924,0.02907066,82801.0,82800.0,0.9086509]
[1743257596227,0.01269567,82801.0,82800.0,0.9086509]
[1743257596529,0.4125,82808.0,82800.0,0.78782]
[1743257596728,0.41314,82808.0,82807.0,0.4816207]
[1743257597032,0.41314,82808.0,82807.0,0.4829407]
[1743257597435,0.21679209,82825.0,82819.0,0.1208031]
[1743257597622,0.01723932,82820.0,82819.0,0.4831231]
[1743257597823,0.00196001,82820.0,82819.0,0.4831231]
[1743257598031,0.00196001,82820.0,82819.0,0.5444231]
[1743257598732,0.00296001,82820.0,82819.0,0.5444231]
[1743257601439,0.00296001,82820.0,82819.0,0.6617031]
[1743257602222,0.0014,82820.0,82819.0,0.6617031]
[1743257605625,0.00292,82820.0,82819.0,0.6617031]
[1743257606035,0.0014,82820.0,82819.0,0.6617031]
[1743257611438,0.0014,82820.0,82819.0,1.0225031]
[1743257616040,0.1222017,82820.0,82819.0,0.78442]
[1743257616243,0.1228417,82820.0,82819.0,0.36232]
[1743257616547,0.1228417,82820.0,82819.0,0.00152]
[1743257617043,0.1557417,82820.0,82819.0,0.00152]
[1743257617231,0.16819229,82820.0,82819.0,0.00152]
[1743257620938,0.16822436,82820.0,82819.0,0.00152]
[1743257621242,0.58072436,82820.0,82819.0,0.00152]
[1743257622437,0.58072436,82820.0,82819.0,0.1223231]
[1743257622741,0.58072436,82820.0,82819.0,0.00152]
[1743257623047,0.58072436,82820.0,82819.0,0.06402]
[1743257623644,0.58072436,82820.0,82819.0,0.00152]
[1743257625950,0.59030084,82820.0,82819.0,0.00152]
[1743257627352,0.73471865,82820.0,82819.0,0.00152]
[1743257627847,0.73371865,82820.0,82819.0,0.00152]
[1743257628946,0.72414217,82820.0,82819.0,0.00152]
[1743257629145,0.73365078,82820.0,82819.0,0.00152]
[1743257629848,0.73369654,82820.0,82819.0,0.00152]
[1743257631252,0.58928615,82820.0,82819.0,0.00152]
[1743257631751,0.61958615,82820.0,82819.0,0.00152]
[1743257633051,0.61959368,82820.0,82819.0,0.00152]
[1743257635039,0.74195951,82820.0,82819.0,0.00152]
[1743257635242,0.76407554,82820.0,82819.0,0.00152]
[1743257636757,0.76407554,82820.0,82819.0,0.03242]
[1743257637151,0.76407554,82820.0,82819.0,0.09742]
[1743257637356,0.88131554,82820.0,82819.0,0.09742]
[1743257638652,0.73689773,82820.0,82819.0,0.09742]
[1743257644652,0.73694071,82820.0,82819.0,0.09742]
[1743257646466,0.75950543,82820.0,82819.0,0.09742]
[1743257646655,0.74442189,82820.0,82819.0,0.0959]
[1743257646962,0.75950543,82820.0,82819.0,0.0959]
[1743257647267,0.81823752,82820.0,82819.0,0.0959]
[1743257647456,0.80315398,82820.0,82819.0,0.0975]
[1743257647652,0.7956728,82820.0,82819.0,0.0631]
[1743257648657,0.7956718,82820.0,82819.0,0.0631]
[1743257650255,0.78608642,82820.0,82819.0,0.0631]
[1743257650563,1.00287851,82820.0,82819.0,0.0631]
[1743257650773,1.00286701,82820.0,82819.0,0.0631]
[1743257652461,1.01238576,82820.0,82819.0,0.0631]
[1743257652658,1.01238824,82820.0,82819.0,0.0631]
[1743257653365,1.00286948,82820.0,82819.0,0.0631]
[1743257653865,1.00286468,82820.0,82819.0,0.0631]
[1743257654361,1.01238411,82820.0,82819.0,0.0631]
[1743257654758,1.01238411,82820.0,82819.0,0.06462]
[1743257655357,1.00286468,82820.0,82819.0,0.06462]
[1743257655756,0.93966468,82820.0,82819.0,0.06462]
[1743257657571,0.82242468,82820.0,82819.0,0.06462]
[1743257657865,0.93962468,82820.0,82819.0,0.06462]
[1743257659468,0.72283259,82820.0,82819.0,0.06462]
[1743257660964,0.78603194,82820.0,82819.0,0.06462]
[1743257662864,0.77347379,82820.0,82819.0,0.06462]
[1743257663059,0.78602861,82820.0,82819.0,0.06462]
[1743257663961,0.78602861,82820.0,82819.0,0.00152]
[1743257664170,0.1208119,82813.0,82812.0,0.0328]
[1743257664362,0.13404672,82813.0,82812.0,0.0328]
[1743257664970,0.13402252,82813.0,82812.0,0.0328]
[1743257665168,0.0604106,82807.0,82803.0,0.21717681]
[1743257665463,0.0604106,82807.0,82803.0,0.21797681]
[1743257665464,0.120825,82804.0,82803.0,0.21797681]
[1743257665658,0.13335562,82804.0,82803.0,0.21797681]
[1743257665858,0.54585562,82804.0,82803.0,0.21797681]
[1743257666059,0.54665562,82804.0,82803.0,0.21797681]
[1743257666255,0.54665562,82804.0,82799.0,0.0325]
[1743257666256,0.1208309,82800.0,82799.0,0.0325]
[1743257666563,0.5617031,82800.0,82799.0,0.0325]
[1743257666959,0.56169151,82800.0,82799.0,0.0325]
[1743257667161,0.54660974,82800.0,82799.0,0.0325]
[1743257667760,0.1208352,82797.0,82796.0,0.0636]
[1743257667967,0.25139404,82797.0,82796.0,0.06436]
[1743257668256,0.61219404,82797.0,82796.0,0.06436]
[1743257669067,1.02469404,82797.0,82796.0,0.00076]
[1743257669574,0.1208367,82796.0,82795.0,0.15693844]
[1743257669868,0.13411554,82796.0,82795.0,0.15761844]
[1743257670174,0.13411554,82796.0,82772.0,0.50762737]
[1743257670175,0.1208425,82792.0,82772.0,0.50762737]
[1743257670472,0.13432135,82792.0,82791.0,0.29016176]
[1743257670772,0.13432135,82792.0,82791.0,0.00064]
[1743257670961,0.1208484,82788.0,82787.0,0.0314]
[1743257671271,0.25159957,82788.0,82787.0,0.03204]
[1743257671472,0.1208513,82786.0,82785.0,0.063]
[1743257671674,0.13432248,82786.0,82785.0,0.063]
[1743257671865,0.1208586,82781.0,82780.0,0.0314]
[1743257672166,0.1208586,82781.0,82780.0,0.0632]
[1743257672167,0.90762978,82781.0,82780.0,0.0632]
[1743257672769,0.1208601,82780.0,82779.0,0.00066438]
[1743257672963,0.13433128,82780.0,82779.0,0.00066438]
[1743257673159,0.19663128,82780.0,82779.0,0.00066438]
[1743257673363,0.1208747,82770.0,82769.0,0.0964]
[1743257673671,0.66320587,82770.0,82769.0,1e-08]
[1743257673875,0.1208805,82766.0,82765.0,0.23131176]
[1743257674064,0.13455167,82766.0,82765.0,0.23195176]
[1743257674371,0.14970888,82766.0,82765.0,0.00064]
[1743257674566,0.1208834,82764.0,82763.0,0.0004833]
[1743257674772,0.54725457,82764.0,82763.0,0.0011233]
[1743257674974,0.1208863,82762.0,82761.0,0.0307]
[1743257675165,0.12044631,82762.0,82761.0,0.03226]
[1743257676474,0.13395293,82762.0,82761.0,0.0307]
[1743257676671,0.21055923,82762.0,82761.0,0.0307]
[1743257677180,0.1208907,82759.0,82758.0,0.033]
[1743257677380,0.24923732,82759.0,82758.0,0.033]
[1743257677872,0.24923732,82759.0,82758.0,0.0637]
[1743257678482,0.2457307,82759.0,82758.0,0.0637]
[1743257679078,0.2397307,82759.0,82758.0,0.0637]
[1743257679277,0.2457307,82759.0,82758.0,0.0637]
[1743257679677,0.2397307,82759.0,82758.0,0.0637]
[1743257679875,0.2457307,82759.0,82758.0,0.0637]
[1743257680581,0.2517307,82759.0,82758.0,0.0637]
[1743257681472,0.26119261,82759.0,82758.0,0.0637]
[1743257681981,0.26019261,82759.0,82758.0,0.0647]
[1743257683171,0.26019261,82759.0,82758.0,0.06542]
[1743257683372,0.26019261,82759.0,82758.0,0.0647]
[1743257683567,0.25419261,82759.0,82758.0,0.06534]
[1743257683772,0.25919261,82759.0,82758.0,0.06534]
[1743257684482,0.25919261,82759.0,82758.0,0.06434]
[1743257685072,0.25922063,82759.0,82758.0,0.06434]
[1743257685372,0.2497307,82759.0,82758.0,0.06434]
[1743257685573,0.1324907,82759.0,82758.0,0.06434]
[1743257685773,0.1324907,82759.0,82758.0,0.1852322]
[1743257687576,0.1314907,82759.0,82758.0,0.1852322]
[1743257692784,0.1294907,82759.0,82758.0,0.1852322]
[1743257693381,0.1264907,82759.0,82758.0,0.1852322]
[1743257693576,0.1274907,82759.0,82758.0,0.1852322]
[1743257694890,0.0066,82759.0,82758.0,0.1852322]
[1743257695894,0.1274907,82759.0,82758.0,0.1852322]
[1743257696787,0.1274907,82759.0,82758.0,0.06434]
[1743257697193,0.14000868,82759.0,82758.0,0.06434]
[1743257697395,0.14000868,82759.0,82758.0,0.1852322]
[1743257697595,0.14954773,82759.0,82758.0,0.1852322]
[1743257699399,0.01614863,82759.0,82758.0,0.1852322]